bitfinex/quotes_SOLUSD_20241126
["timestamp","ask_amount","ask_price","bid_price","bid_amount"]
[1732592090062,20.0,237.53,237.47,8.19043702]
[1732592090762,8.19043702,237.52,237.46,23.776884]
[1732592093768,20.0,237.53,237.46,27.988084]
[1732592093968,20.0,237.53,237.47,23.776884]
[1732592094975,28.19043702,237.53,237.47,23.776884]
[1732592095870,28.19043702,237.53,237.46,23.776884]
[1732592096066,28.19043702,237.53,237.46,27.988084]
[1732592096678,20.0,237.53,237.48,23.776884]
[1732592097968,24.21,237.53,237.46,23.776884]
[1732592098691,32.40043702,237.53,237.46,23.776884]
[1732592099390,32.40043702,237.53,237.46,27.987984]
[1732592100298,20.0,237.53,237.48,23.776884]
[1732592102488,0.485149,237.55,237.48,23.776884]
[1732592104095,0.485149,237.55,237.48,27.987684]
[1732592106396,4.694749,237.55,237.48,27.987684]
[1732592109674,0.485149,237.55,237.51,8.19043702]
[1732592109883,0.485149,237.55,237.52,23.776884]
[1732592111000,0.485149,237.55,237.5,31.96732102]
[1732592111381,0.485149,237.55,237.5,36.17782102]
[1732592112897,0.485149,237.55,237.51,8.19043702]
[1732592113090,0.485149,237.55,237.52,23.776884]
[1732592115003,0.485149,237.55,237.53,8.19043702]
[1732592115173,0.485149,237.55,237.54,32.09281102]
[1732592116000,0.485149,237.55,237.52,27.986884]
[1732592116194,0.485149,237.55,237.49,15.6125]
[1732592116195,0.485149,237.55,237.5,36.17762102]
[1732592116398,0.485149,237.55,237.5,31.96732102]
[1732592116696,0.485149,237.55,237.53,8.19043702]
[1732592117003,0.485149,237.55,237.5,23.776884]
[1732592117204,0.485149,237.55,237.52,23.776884]
[1732592117405,0.485149,237.55,237.5,31.96732102]
[1732592117777,0.485149,237.55,237.52,23.776884]
[1732592119684,0.485149,237.55,237.53,8.19043702]
[1732592119896,0.485149,237.55,237.54,23.776884]
[1732592120887,0.485149,237.55,237.54,23.902374]
[1732592121090,0.485149,237.55,237.54,32.09281102]
[1732592121998,0.485149,237.55,237.54,36.30261102]
[1732592125887,0.485149,237.55,237.53,23.776884]
[1732592130602,0.485149,237.55,237.54,31.96732102]
[1732592132615,0.485149,237.55,237.54,36.30261102]
[1732592145903,0.485149,237.55,237.54,36.42810102]
[1732592150443,8.17558602,237.68,237.59,23.902374]
[1732592150727,8.17558602,237.68,237.61,8.19043702]
[1732592151506,8.19043702,237.67,237.6,12.39913702]
[1732592151924,8.19043702,237.68,237.61,8.19043702]
[1732592152126,8.19043702,237.68,237.6,12.39913702]
[1732592152627,4.2069,237.7,237.61,8.19043702]
[1732592152921,8.19043702,237.69,237.62,8.19043702]
[1732592153815,12.39763702,237.69,237.62,8.19043702]
[1732592154626,8.19043702,237.68,237.61,12.39893702]
[1732592156426,8.19043702,237.69,237.61,12.39893702]
[1732592157516,8.19043702,237.67,237.61,4.2085]
[1732592157715,4.2072,237.69,237.61,12.39893702]
[1732592157919,12.39763702,237.69,237.62,8.19043702]
[1732592159423,12.39763702,237.69,237.61,8.19043702]
[1732592159635,8.19043702,237.68,237.6,12.39913702]
[1732592160328,12.39763702,237.69,237.61,8.19043702]
[1732592160540,12.39763702,237.69,237.62,8.19043702]
[1732592160707,4.2072,237.69,237.62,8.19043702]
[1732592161030,4.2066,237.72,237.64,8.19043702]
[1732592161231,8.19043702,237.72,237.64,8.19043702]
[1732592161530,19.63859449,237.71,237.64,8.19043702]
[1732592161935,15.43179449,237.71,237.64,8.19043702]
[1732592162134,15.43179449,237.71,237.63,8.19043702]
[1732592162517,8.19043702,237.69,237.59,23.902374]
[1732592162720,8.19043702,237.69,237.6,4.2087]
[1732592162917,8.19043702,237.69,237.6,12.39913702]
[1732592163118,8.19043702,237.68,237.61,8.19043702]
[1732592163936,12.39763702,237.69,237.62,8.19043702]
[1732592164121,15.43179449,237.71,237.63,8.19043702]
[1732592164306,8.19043702,237.7,237.62,8.19043702]
[1732592165539,12.39743702,237.7,237.62,12.39873702]
[1732592165730,8.19043702,237.7,237.62,12.39873702]
[1732592168538,12.39743702,237.7,237.62,12.39873702]
[1732592170338,7.24135747,237.71,237.62,12.39873702]
[1732592170547,8.19043702,237.7,237.62,12.39873702]
[1732592172621,8.19043702,237.68,237.59,23.902374]
[1732592172825,8.19043702,237.68,237.6,8.19043702]
[1732592173737,8.19043702,237.68,237.59,28.111174]
[1732592174042,8.19043702,237.68,237.59,36.30161102]
[1732592175020,12.39783702,237.68,237.59,36.30161102]
[1732592176525,12.39783702,237.68,237.61,8.19043702]
[1732592176725,8.19043702,237.67,237.6,4.2086]
[1732592181240,8.19043702,237.64,237.48,10.527]
[1732592181440,8.19043702,237.59,237.51,8.19043702]
[1732592181833,8.19043702,237.58,237.51,8.19043702]
[1732592182740,8.19043702,237.58,237.51,12.40073702]
[1732592183548,12.39963702,237.58,237.5,8.19043702]
[1732592184130,8.19043702,237.57,237.5,8.19043702]
[1732592184326,8.19043702,237.58,237.51,8.19043702]
[1732592185050,8.19043702,237.61,237.53,8.19043702]
[1732592185250,10.5199,237.65,237.53,8.19043702]
[1732592185439,8.19043702,237.6,237.53,8.19043702]
[1732592186161,8.19043702,237.59,237.52,8.19043702]
[1732592186456,8.19043702,237.59,237.51,8.19043702]
[1732592187154,8.19043702,237.59,237.52,12.40053702]
[1732592187945,0.12549,237.64,237.52,12.40053702]
[1732592188265,8.19043702,237.6,237.52,12.40053702]
[1732592188843,8.19043702,237.59,237.52,4.2101]
[1732592189044,8.19043702,237.58,237.49,20.0]
[1732592189372,8.19043702,237.56,237.48,12.40113702]
[1732592189967,8.19043702,237.57,237.49,8.19043702]
[1732592190263,8.19043702,237.57,237.49,12.40103702]
[1732592190838,24.14353702,237.57,237.49,12.40103702]
[1732592191060,24.14353702,237.57,237.5,8.19043702]
[1732592191458,24.14353702,237.57,237.49,12.40103702]
[1732592191958,23.64353702,237.57,237.49,12.40103702]
[1732592193241,23.64353702,237.57,237.5,8.19043702]
[1732592194238,6.3268,237.59,237.53,8.19043702]
[1732592194437,8.19043702,237.61,237.54,8.19043702]
[1732592194866,12.39893702,237.61,237.54,8.19043702]
[1732592195564,24.14353702,237.62,237.55,8.19043702]
[1732592195864,8.19043702,237.61,237.54,8.19043702]
[1732592196162,8.19043702,237.6,237.51,20.0]
[1732592196367,8.19043702,237.6,237.52,0.12549]
[1732592196558,8.19043702,237.6,237.52,23.902374]
[1732592197075,8.19043702,237.6,237.51,43.902374]
[1732592197269,8.19043702,237.6,237.53,8.19043702]
[1732592197453,28.35193702,237.62,237.54,8.19043702]
[1732592198667,8.19043702,237.61,237.54,4.2097]
[1732592199948,28.35193702,237.62,237.55,8.19043702]
[1732592200555,15.9531,237.62,237.56,8.19043702]
[1732592202067,15.9531,237.62,237.56,12.39983702]
[1732592202566,14.51723702,237.64,237.57,8.19043702]
[1732592202758,12.39823702,237.66,237.59,8.19043702]
[1732592203072,8.8735329,237.67,237.59,8.19043702]
[1732592203255,8.19043702,237.66,237.59,8.19043702]
[1732592203840,8.19043702,237.66,237.59,12.39923702]
[1732592205057,8.8735329,237.67,237.6,8.19043702]
[1732592205259,17.06396992,237.67,237.6,8.19043702]
[1732592205458,4.2075,237.67,237.61,8.19043702]
[1732592205671,4.2075,237.67,237.63,8.19043702]
[1732592205962,4.2075,237.67,237.62,8.19043702]
[1732592206163,15.9531,237.68,237.64,8.19043702]
[1732592206366,4.2066,237.72,237.64,8.19043702]
[1732592206575,8.19043702,237.7,237.63,8.19043702]
[1732592207670,8.19043702,237.7,237.63,12.39853702]
[1732592208348,7.24093174,237.72,237.66,8.19043702]
[1732592208956,7.24093174,237.72,237.67,8.19043702]
[1732592209170,15.43136876,237.72,237.65,8.19043702]
[1732592209357,8.19043702,237.72,237.65,8.19043702]
[1732592209550,12.39683702,237.73,237.66,8.19043702]
[1732592210158,8.19043702,237.72,237.65,12.39823702]
[1732592210560,12.39683702,237.73,237.65,12.39823702]
[1732592210775,8.19043702,237.68,237.62,0.12549]
[1732592211086,8.19043702,237.68,237.61,8.19043702]
[1732592211481,8.19043702,237.69,237.62,8.19043702]
[1732592211772,8.19043702,237.7,237.63,8.19043702]
[1732592211972,4.2062,237.74,237.63,8.19043702]
[1732592212182,8.19043702,237.72,237.65,8.19043702]
[1732592212781,8.19043702,237.71,237.64,8.19043702]
[1732592213159,8.19043702,237.72,237.65,8.19043702]
[1732592213581,8.19043702,237.73,237.66,8.19043702]
[1732592214162,8.19043702,237.72,237.65,8.19043702]
[1732592214894,8.19043702,237.71,237.64,32.09281102]
[1732592215584,8.19043702,237.71,237.64,36.30071102]
[1732592218267,7.23955622,237.77,237.71,23.902374]
[1732592218569,7.23955622,237.77,237.72,8.19043702]
[1732592219570,7.23955622,237.77,237.73,8.19043702]
[1732592220191,7.23955622,237.77,237.72,8.19043702]
[1732592221169,7.23955622,237.77,237.73,8.19043702]
[1732592222076,7.23955622,237.77,237.72,31.96732102]
[1732592223094,7.23955622,237.77,237.72,23.776884]
[1732592225406,7.23955622,237.77,237.72,31.96732102]
[1732592226297,7.23955622,237.77,237.72,23.776884]
[1732592226489,8.19043702,237.75,237.69,8.190437]
[1732592226994,8.19043702,237.76,237.69,8.19043702]
[1732592227178,19.63569324,237.77,237.7,8.19043702]
[1732592229110,8.19043702,237.74,237.68,23.902374]
[1732592229487,8.19043702,237.75,237.68,23.902374]
[1732592230093,7.23955622,237.77,237.72,8.19043702]
[1732592230395,7.23955622,237.77,237.71,8.19043702]
[1732592230593,7.23955622,237.77,237.69,0.12549]
[1732592230594,15.42999324,237.77,237.7,8.19043702]
[1732592230799,15.42999324,237.77,237.71,23.776884]
[1732592231182,19.63569324,237.77,237.71,23.776884]
[1732592231501,19.63569324,237.77,237.69,31.96732102]
[1732592231799,8.19043702,237.76,237.69,23.776884]
[1732592231996,8.19043702,237.75,237.69,23.776884]
[1732592232899,8.19043702,237.74,237.67,8.31592702]
[1732592233090,8.19043702,237.74,237.68,23.776884]
[1732592233479,8.19043702,237.73,237.68,23.776884]
[1732592233679,8.19043702,237.73,237.66,23.902374]
[1732592233898,8.19043702,237.73,237.65,12.39823702]
[1732592233899,8.19043702,237.72,237.64,12.39833702]
[1732592234374,12.39703702,237.73,237.66,8.19043702]
[1732592234580,4.2066,237.73,237.66,8.19043702]
[1732592236703,4.2066,237.73,237.67,8.19043702]
[1732592237090,4.2066,237.73,237.68,8.19043702]
[1732592237401,8.19043702,237.74,237.67,8.19043702]
[1732592237601,12.39673702,237.74,237.67,8.19043702]
[1732592238174,4.2063,237.74,237.67,8.19043702]
[1732592239193,12.39673702,237.74,237.67,8.19043702]
[1732592239490,8.19043702,237.71,237.65,23.902374]
[1732592240283,8.19043702,237.73,237.65,23.902374]
[1732592240484,8.19043702,237.73,237.65,28.110074]
[1732592240891,4.2064,237.73,237.66,8.19043702]
[1732592243315,15.7645,237.75,237.68,8.19043702]
[1732592243518,15.42999324,237.77,237.7,8.19043702]
[1732592243814,7.23955622,237.77,237.7,8.19043702]
[1732592244102,8.19043702,237.76,237.7,8.19043702]
[1732592244679,15.42999324,237.77,237.7,8.19043702]
[1732592246090,7.23955622,237.77,237.71,23.902374]
[1732592246293,7.23955622,237.77,237.71,32.09281102]
[1732592246505,7.23955622,237.77,237.72,8.19043702]
[1732592246686,7.23955622,237.77,237.73,23.776884]
[1732592246887,7.23955622,237.77,237.71,32.09281102]
[1732592247294,7.23955622,237.77,237.73,23.776884]
[1732592248080,7.23955622,237.77,237.73,27.983184]
[1732592248992,7.23955622,237.77,237.73,36.17362102]
[1732592249311,7.23955622,237.77,237.73,27.983184]
[1732592253906,7.23955622,237.77,237.74,0.12549]
[1732592254210,7.23955622,237.77,237.75,31.96732102]
[1732592255385,7.23955622,237.77,237.75,36.17332102]
[1732592255594,7.23955622,237.77,237.76,32.09281102]
[1732592257506,7.23955622,237.77,237.76,23.902374]
[1732592259413,7.23955622,237.77,237.75,0.12549]
[1732592259715,15.42999324,237.77,237.74,23.776884]
[1732592260012,7.23955622,237.77,237.73,0.12549]
[1732592260194,7.23955622,237.77,237.74,23.776884]
[1732592260595,7.23955622,237.77,237.73,8.31592702]
[1732592260596,7.23955622,237.77,237.73,0.12549]
[1732592261318,15.42999324,237.77,237.73,0.12549]
[1732592261789,8.19043702,237.75,237.71,23.776884]
[1732592262116,8.19043702,237.75,237.7,20.0]
[1732592262317,8.19043702,237.75,237.69,4.2071]
[1732592262615,8.19043702,237.76,237.69,12.39753702]
[1732592262824,15.42999324,237.77,237.69,12.39753702]
[1732592263321,7.23955622,237.77,237.7,36.29961102]
[1732592264024,15.42999324,237.77,237.7,36.29961102]
[1732592264222,7.23955622,237.77,237.71,0.12549]
[1732592264720,7.23955622,237.77,237.71,8.31592702]
[1732592264947,7.23955622,237.77,237.72,23.902374]
[1732592265296,7.23955622,237.77,237.73,23.776884]
[1732592267721,7.23955622,237.77,237.74,23.776884]
[1732592269197,7.23955622,237.77,237.74,23.69309878]
[1732592271827,8.19043702,237.76,237.68,28.19043702]
[1732592272007,8.19043702,237.76,237.7,0.12549]
[1732592272527,7.23955622,237.77,237.7,0.12549]
[1732592272528,15.42999324,237.77,237.7,0.12549]
[1732592274030,15.42999324,237.77,237.71,23.776884]
[1732592274927,8.19043702,237.76,237.71,23.776884]
[1732592275131,8.19043702,237.74,237.67,8.19043702]
[1732592275423,8.19043702,237.75,237.68,8.19043702]
[1732592275627,8.19043702,237.75,237.69,23.776884]
[1732592275827,15.42999324,237.77,237.7,8.19043702]
[1732592276002,19.63579324,237.77,237.7,8.19043702]
[1732592276209,8.19043702,237.76,237.69,36.17442102]
[1732592276409,11.44535622,237.77,237.69,36.17442102]
[1732592276925,8.19043702,237.76,237.69,36.17442102]
[1732592280015,8.19043702,237.74,237.59,27.0421]
[1732592280331,8.19043702,237.7,237.63,8.19043702]
[1732592280632,8.19043702,237.67,237.6,12.39913702]
[1732592280935,8.19043702,237.66,237.6,4.2087]
[1732592281118,8.19043702,237.67,237.6,4.2087]
[1732592281426,8.19043702,237.67,237.6,12.39913702]
[1732592282429,8.19043702,237.68,237.61,31.96732102]
[1732592282929,8.19043702,237.68,237.6,8.19043702]
[1732592283125,12.39763702,237.69,237.61,8.19043702]
[1732592283427,8.19043702,237.68,237.61,8.19043702]
[1732592284212,4.2073,237.68,237.61,8.19043702]
[1732592284414,4.2073,237.68,237.62,8.19043702]
[1732592287832,4.2073,237.68,237.6,27.985584]
[1732592287833,12.39773702,237.68,237.61,8.19043702]
[1732592288530,15.6957,237.71,237.66,8.19043702]
[1732592289133,8.19043702,237.74,237.66,8.19043702]
[1732592289337,12.39663702,237.74,237.66,8.19043702]
[1732592289641,4.2062,237.74,237.69,8.19043702]
[1732592289936,4.2062,237.74,237.68,8.19043702]
[1732592290632,4.2062,237.74,237.67,8.19043702]
[1732592290817,12.39663702,237.74,237.67,8.19043702]
[1732592291133,12.39663702,237.74,237.66,8.19043702]
[1732592291527,4.2062,237.74,237.68,8.19043702]
[1732592292134,8.19043702,237.75,237.68,8.19043702]
[1732592292925,31.12569324,237.77,237.7,8.19043702]
[1732592293141,8.19043702,237.76,237.69,8.19043702]
[1732592293324,12.39643702,237.76,237.69,8.19043702]
[1732592294138,22.93525622,237.77,237.7,8.19043702]
[1732592294319,22.93525622,237.77,237.71,8.19043702]
[1732592294820,22.93525622,237.77,237.73,8.19043702]
[1732592296316,7.23955622,237.77,237.73,12.39683702]
[1732592296738,7.23955622,237.77,237.74,8.19043702]
[1732592296941,7.23955622,237.77,237.73,8.19043702]
[1732592297327,0.485149,237.79,237.73,8.19043702]
[1732592298442,8.67558602,237.79,237.72,12.39693702]
[1732592298819,0.485149,237.79,237.73,8.19043702]
[1732592299021,0.485149,237.79,237.75,8.19043702]
[1732592299338,0.485149,237.79,237.76,12.39623702]
[1732592299544,0.485149,237.79,237.76,8.19043702]
[1732592299721,0.485149,237.79,237.76,23.776884]
[1732592300949,0.485149,237.79,237.76,36.17322102]
[1732592301944,0.485149,237.79,237.76,27.982784]
[1732592302143,0.485149,237.79,237.76,36.17322102]
[1732592302349,0.485149,237.79,237.77,8.19043702]
[1732592302527,0.485149,237.79,237.76,27.982784]
[1732592304042,0.485149,237.79,237.75,23.902374]
[1732592304247,0.485149,237.79,237.75,36.29881102]
[1732592305537,0.485149,237.79,237.75,28.108374]
[1732592306048,0.485149,237.79,237.75,0.12549]
[1732592306229,0.485149,237.79,237.75,23.776884]
[1732592307831,0.485149,237.79,237.75,27.982884]
[1732592308633,0.485149,237.79,237.7,23.902374]
[1732592308838,0.485149,237.79,237.72,23.902374]
[1732592309851,0.485149,237.79,237.72,28.108774]
[1732592310061,0.485149,237.79,237.74,23.776884]
[1732592311434,0.485149,237.79,237.75,4.33149]
[1732592311630,0.485149,237.79,237.76,23.776884]
[1732592314054,0.485149,237.79,237.75,23.902374]
[1732592314349,0.485149,237.79,237.77,23.776884]
[1732592317259,0.485149,237.79,237.78,32.09281102]
[1732592317495,0.485149,237.79,237.78,32.21830102]
[1732592319244,0.485149,237.79,237.78,36.42380102]
[1732592321746,0.485149,237.79,237.78,37.05432193]
[1732592321942,0.485149,237.79,237.78,47.05432193]
[1732592322146,6.2959,237.96,237.84,4.2045]
[1732592322351,8.19043702,237.98,237.91,8.19043702]
[1732592322665,8.19043702,237.97,237.9,8.19043702]
[1732592322857,8.19043702,237.96,237.88,20.12549]
[1732592323062,8.19043702,237.96,237.9,23.776884]
[1732592323367,8.19043702,237.95,237.89,23.776884]
[1732592323862,8.19043702,237.95,237.88,23.776884]
[1732592324167,8.19043702,237.94,237.88,23.776884]
[1732592325443,4.2019,237.99,237.88,23.776884]
[1732592325644,8.19043702,237.98,237.9,8.19043702]
[1732592325865,8.19043702,237.97,237.89,8.19043702]
[1732592326654,4.2018,237.99,237.89,8.19043702]
[1732592326965,19.3563,238.01,237.94,8.19043702]
[1732592327266,15.1548,238.01,237.95,31.96732102]
[1732592328267,8.19043702,238.0,237.93,8.19043702]
[1732592328643,8.19043702,238.0,237.94,23.776884]
[1732592329363,12.39223702,238.0,237.94,23.776884]
[1732592329979,4.2018,238.0,237.94,8.19043702]
[1732592330356,12.87698602,238.02,237.95,31.96732102]
[1732592330560,12.87698602,238.02,237.95,23.776884]
[1732592330869,12.87698602,238.02,237.95,31.96732102]
[1732592331075,12.87698602,238.02,237.94,8.19043702]
[1732592331564,4.686549,238.02,237.95,23.776884]
[1732592331870,4.686549,238.02,237.96,8.19043702]
[1732592332074,8.19043702,238.01,237.95,23.776884]
[1732592332265,8.19043702,238.0,237.95,23.776884]
[1732592332566,8.19043702,238.01,237.95,23.776884]
[1732592333069,12.87698602,238.02,237.95,23.776884]
[1732592333470,0.485149,238.02,238.01,8.19043702]
[1732592333659,0.485149,238.02,238.01,31.96732102]
[1732592333856,0.485149,238.02,238.01,32.09281102]
[1732592337089,0.485149,238.02,238.01,23.776884]
[1732592337256,0.485149,238.02,238.01,8.19043702]
[1732592337456,0.485149,238.02,238.01,32.09281102]
[1732592340263,0.485149,238.02,238.01,31.96732102]
[1732592345472,6.73561076,238.09,238.01,31.96732102]
[1732592345867,6.73561076,238.09,238.05,8.19043702]
[1732592346470,6.73561076,238.09,238.04,8.19043702]
[1732592346975,4.2002,238.08,238.06,8.19043702]
[1732592347287,14.65703702,238.16,238.07,8.19043702]
[1732592347459,4.199,238.15,238.1,8.19043702]
[1732592347973,4.199,238.15,238.09,8.19043702]
[1732592348479,4.199,238.15,238.1,8.19043702]
[1732592348681,4.199,238.15,238.09,8.19043702]
[1732592348971,6.4666,238.16,238.07,23.902374]
[1732592349171,10.6655,238.16,238.1,8.19043702]
[1732592351362,10.6655,238.16,238.09,8.19043702]
[1732592353563,4.1989,238.16,238.09,8.19043702]
[1732592353765,4.1986,238.17,238.11,8.19043702]
[1732592354182,4.1984,238.19,238.12,8.19043702]
[1732592354490,4.1984,238.19,238.14,8.19043702]
[1732592355064,7.03315465,238.21,238.14,8.19043702]
[1732592355268,7.03315465,238.21,238.16,8.19043702]
[1732592356283,15.7443,238.24,238.2,8.19043702]
[1732592356674,15.7443,238.24,238.19,8.19043702]
[1732592356866,19.9418,238.24,238.19,8.19043702]
[1732592357592,19.682349,238.26,238.2,8.19043702]
[1732592358872,19.682349,238.26,238.19,8.19043702]
[1732592359386,27.87278602,238.26,238.18,8.19043702]
[1732592359583,19.682349,238.26,238.18,8.19043702]
[1732592359784,27.87278602,238.26,238.19,8.19043702]
[1732592359984,19.682349,238.26,238.19,8.19043702]
[1732592360171,8.19043702,238.25,238.17,8.19043702]
[1732592360491,4.1973,238.25,238.19,8.19043702]
[1732592361078,15.485149,238.26,238.2,8.19043702]
[1732592361285,15.485149,238.26,238.21,8.19043702]
[1732592362093,15.485149,238.26,238.22,8.19043702]
[1732592362981,15.485149,238.26,238.19,8.19043702]
[1732592363294,8.19043702,238.25,238.18,8.19043702]
[1732592364093,8.19043702,238.24,238.17,8.31592702]
[1732592364288,19.682349,238.26,238.2,8.19043702]
[1732592364499,15.485149,238.26,238.2,8.19043702]
[1732592364686,15.485149,238.26,238.21,8.19043702]
[1732592365778,15.485149,238.26,238.2,4.1981]
[1732592365979,15.485149,238.26,238.22,8.19043702]
[1732592366382,15.485149,238.26,238.24,8.19043702]
[1732592367476,15.485149,238.26,238.25,8.19043702]
[1732592367978,15.485149,238.26,238.24,8.19043702]
[1732592368598,15.485149,238.26,238.23,8.19043702]
[1732592370492,15.485149,238.26,238.24,8.19043702]
[1732592370786,15.485149,238.26,238.21,23.902374]
[1732592370991,23.67558602,238.26,238.21,0.12549]
[1732592371194,15.485149,238.26,238.21,0.12549]
[1732592371391,15.485149,238.26,238.21,8.31592702]
[1732592371774,15.485149,238.26,238.22,8.19043702]
[1732592373877,15.485149,238.26,238.24,8.19043702]
[1732592374502,15.485149,238.26,238.23,8.19043702]
[1732592375382,15.485149,238.26,238.21,4.32339]
[1732592375604,15.485149,238.26,238.21,8.31592702]
[1732592375899,15.485149,238.26,238.2,32.09281102]
[1732592376080,15.485149,238.26,238.21,8.19043702]
[1732592376401,15.485149,238.26,238.19,32.09281102]
[1732592376589,27.87268602,238.26,238.19,8.19043702]
[1732592376776,27.87268602,238.26,238.18,8.19043702]
[1732592376777,8.19043702,238.25,238.18,8.19043702]
[1732592377781,4.1972,238.25,238.19,8.19043702]
[1732592379502,4.1972,238.25,238.21,8.19043702]
[1732592379801,4.1972,238.25,238.2,8.19043702]
[1732592380104,4.1972,238.25,238.19,8.19043702]
[1732592380473,4.1972,238.25,238.18,8.19043702]
[1732592380680,4.1972,238.25,238.2,8.19043702]
[1732592380982,4.1972,238.25,238.19,8.19043702]
[1732592381181,15.485149,238.26,238.21,8.19043702]
[1732592381385,15.485149,238.26,238.22,8.19043702]
[1732592382079,15.485149,238.26,238.2,8.19043702]
[1732592382492,15.485149,238.26,238.21,8.19043702]
[1732592384077,15.485149,238.26,238.24,8.19043702]
[1732592385196,15.485149,238.26,238.23,8.19043702]
[1732592386090,15.485149,238.26,238.22,8.19043702]
[1732592387002,19.682249,238.26,238.19,0.12549]
[1732592387206,19.682249,238.26,238.2,8.19043702]
[1732592387380,15.485149,238.26,238.22,8.19043702]
[1732592387580,15.485149,238.26,238.23,8.19043702]
[1732592387802,15.485149,238.26,238.22,8.19043702]
[1732592388182,15.485149,238.26,238.2,8.19043702]
[1732592389505,15.485149,238.26,238.22,8.19043702]
[1732592392587,15.485149,238.26,238.22,12.38803702]
[1732592394090,15.485149,238.26,238.24,8.19043702]
[1732592395688,15.485149,238.26,238.22,8.19043702]
[1732592397305,15.485149,238.26,238.22,12.38813702]
[1732592397687,15.485149,238.26,238.2,4.1979]
[1732592398891,15.485149,238.26,238.21,8.19043702]
[1732592400310,15.485149,238.26,238.21,12.38833702]
[1732592401204,15.485149,238.26,238.19,4.1982]
[1732592401514,15.485149,238.26,238.19,12.38863702]
[1732592403508,27.87268602,238.26,238.17,35.485149]
[1732592403820,8.19043702,238.22,238.17,15.485149]
[1732592403997,8.19043702,238.22,238.08,10.5002]
[1732592404198,8.19043702,238.2,238.12,8.19043702]
[1732592404416,8.19043702,238.21,238.13,8.19043702]
[1732592404718,8.19043702,238.21,238.14,8.19043702]
[1732592405511,12.38843702,238.21,238.13,12.38973702]
[1732592405830,8.19043702,238.19,238.11,4.1996]
[1732592406123,4.198,238.21,238.1,8.19043702]
[1732592406324,8.19043702,238.18,238.1,8.19043702]
[1732592406819,8.19043702,238.19,238.12,8.19043702]
[1732592407024,8.19043702,238.19,238.11,8.19043702]
[1732592407219,8.19043702,238.18,238.1,8.19043702]
[1732592407412,8.19043702,238.18,238.09,20.0]
[1732592407819,8.19043702,238.18,238.1,8.19043702]
[1732592408734,12.38893702,238.18,238.1,8.19043702]
[1732592408929,8.19043702,238.16,238.06,15.485149]
[1732592409221,8.19043702,238.14,238.07,8.19043702]
[1732592409424,16.0281,238.15,238.07,8.19043702]
[1732592410103,20.2272,238.15,238.07,8.19043702]
[1732592410827,8.19043702,238.14,238.07,8.19043702]
[1732592411028,8.19043702,238.12,238.05,8.19043702]
[1732592411422,20.2272,238.15,238.09,8.19043702]
[1732592411640,16.0281,238.15,238.09,8.19043702]
[1732592411825,10.4559,238.19,238.12,8.19043702]
[1732592413050,8.19043702,238.18,238.1,8.19043702]
[1732592413828,8.19043702,238.14,238.07,8.19043702]
[1732592414229,8.19043702,238.12,238.04,8.19043702]
[1732592414546,8.19043702,238.11,238.04,8.19043702]
[1732592414741,8.19043702,238.1,238.03,8.19043702]
[1732592414954,8.19043702,238.1,238.02,8.19043702]
[1732592416025,4.1999,238.1,238.04,8.19043702]
[1732592416831,12.39033702,238.1,238.02,8.19043702]
[1732592417022,12.39033702,238.1,237.96,47.57290737]
[1732592417023,8.19043702,238.08,238.0,20.0]
[1732592417226,8.19043702,238.08,238.0,28.19043702]
[1732592417840,8.19043702,238.06,237.98,8.19043702]
[1732592418025,8.19043702,238.04,237.98,20.0]
[1732592418223,8.19043702,238.04,237.97,4.202]
[1732592418426,8.19043702,238.04,237.95,4.2025]
[1732592418643,6.4619,238.09,237.98,8.19043702]
[1732592418933,4.2006,238.06,237.93,8.190437]
[1732592419129,8.19043702,238.05,237.97,8.19043702]
[1732592420135,4.32569,238.08,237.97,8.19043702]
[1732592420343,8.19043702,238.05,237.97,8.19043702]
[1732592421235,12.39133702,238.05,237.97,8.19043702]
[1732592421751,8.19043702,238.03,237.95,32.39283702]
[1732592422052,4.2009,238.05,237.85,4.2043]
[1732592422053,8.19043702,237.97,237.85,4.2043]
[1732592422240,8.19043702,237.91,237.86,8.190437]
[1732592422441,8.19043702,237.89,237.83,2.18847708]
[1732592422645,8.19043702,237.89,237.8,8.19043702]
[1732592422952,8.19043702,237.89,237.8,12.39553702]
[1732592423343,8.19043702,237.89,237.82,8.19043702]
[1732592423862,16.0529,237.91,237.88,8.19043702]
[1732592424043,6.4619,237.96,237.88,8.19043702]
[1732592424044,14.65233702,237.96,237.88,8.19043702]
[1732592425029,8.19043702,237.95,237.88,8.19043702]
[1732592426537,12.39323702,237.94,237.82,0.12549]
[1732592426737,8.19043702,237.94,237.86,8.19043702]
[1732592426936,8.19043702,237.95,237.87,8.19043702]